lending/lending_fUSD_20260104
["ID","MTS","AMOUNT","RATE_DAILY","PERIOD"]
[400430896,1767545432086,-500.0,0.00015749,2]
[400430897,1767545432096,-183.42552952,0.00015749,2]
[400430899,1767545432105,-500.0,0.00015749,2]
[400430900,1767545432115,-500.0,0.00015749,2]
[400430902,1767545432125,-500.0,0.00015749,2]
[400430904,1767545432135,-500.0,0.00015749,2]
[400430905,1767545432144,-500.0,0.00015749,2]
[400430906,1767545432158,-500.0,0.00015749,2]
[400430907,1767545432168,-500.0,0.00015749,2]
[400430908,1767545432178,-500.0,0.00015749,2]
[400430910,1767545432187,-500.0,0.00015749,2]
[400430913,1767545432198,-500.0,0.00015749,2]
[400430915,1767545432207,-500.0,0.00015749,2]
[400430918,1767545432217,-500.0,0.00015749,2]
[400430922,1767545432230,-500.0,0.00015749,2]
[400430925,1767545432240,-500.0,0.00015749,2]
[400430926,1767545432249,-500.0,0.00015749,2]
[400430929,1767545432259,-500.0,0.00015749,2]
[400430930,1767545432268,-500.0,0.00015749,2]
[400430932,1767545432278,-500.0,0.00015749,2]
[400430934,1767545432288,-500.0,0.00015749,2]
[400430935,1767545432297,-26734.84011273,0.0001575,2]
[400430942,1767545439983,-300.29463649,0.0001575,2]
[400430943,1767545439996,-12546.79999999,0.0001575,2]
[400430944,1767545440008,-5313.78892367,0.0001575,2]
[400430945,1767545440020,-6913.50557726,0.0001575,2]
[400430946,1767545440193,-4257.78598744,0.0001575,2]
[400430947,1767545440206,-47522.91959712,0.0001575,2]
[400430948,1767545440217,-498.56809228,0.0001575,2]
[400430949,1767545440247,-645.04788305,0.0001575,2]
[400430950,1767545440259,-702.27483618,0.0001575,2]
[400430951,1767545440355,-826.28059818,0.0001575,2]
[400430956,1767545443678,-1265.41142813,0.0001575,2]
[400430957,1767545443723,-40.60055658,0.0001575,2]
[400430958,1767545443737,-632674.93949842,0.0001575,2]
[400430959,1767545443753,-2979.06507186,0.0001575,2]
[400430960,1767545443770,-930.68984301,0.0001575,2]
[400430961,1767545443788,-603.2142,0.0001575,2]
[400430971,1767545445941,-1904.79067811,0.0001575,2]
[400430972,1767545446006,-523.49586585,0.0001575,2]
[400430973,1767545446018,-416.30793719,0.0001575,2]
[400430974,1767545446030,-1097.68314574,0.0001575,2]
[400430975,1767545446041,-44851.89535498,0.0001575,2]
[400430976,1767545446100,-1497.7912857,0.0001575,2]
[400430977,1767545446156,-343.53915486,0.0001575,2]
[400430978,1767545446211,-500.0,0.0001575,2]
[400430985,1767545454513,1000.0,0.00015483,2]
[400430987,1767545585144,1500.0,0.00015129,2]
[400430991,1767545689066,2668.12,0.00015156,2]
[400431004,1767545884238,5831.89,0.0001497,2]
[400431005,1767545884260,1189.68,0.0001497,2]
[400431007,1767545946983,2857.99,0.00015087,2]
[400431008,1767545993264,2177.9,0.00015005,2]
[400431010,1767546055232,227.46759248,0.00015457,2]
[400431011,1767546082681,973.39,0.00014988,2]
[400431012,1767546096945,999.0,0.00015006,3]
[400431027,1767546296471,10000.01,0.0001563,2]
[400431054,1767546547110,-1200.0,0.00015629,2]
[400431055,1767546547132,-300.0,0.00015629,2]
[400431056,1767546547153,-300.0,0.00015629,2]
[400431057,1767546547178,-33.97624533,0.0001563,2]
[400431058,1767546631983,-1583.19812806,0.0001554,2]
[400431059,1767546631996,-916.80187194,0.0001554,2]
[400431060,1767546632006,-163.45327628,0.00015547,2]
[400431061,1767546632015,-1610.53579178,0.00015547,2]
[400431062,1767546632036,-361.51529984,0.00015547,2]
[400431063,1767546632090,-408.55610046,0.00015547,2]
[400431064,1767546632100,-1200.0,0.00015629,2]
[400431065,1767546632110,-300.0,0.00015629,2]
[400431066,1767546632119,-250.0,0.0001563,2]
[400431067,1767546632129,-17140.21506124,0.0001563,2]
[400431068,1767546632141,-1383.94687761,0.0001563,2]
[400431069,1767546632158,-1816.32,0.0001563,2]
[400431070,1767546632199,-4169.57807811,0.0001563,2]
[400431071,1767546632209,-250.0,0.00015636,2]
[400431072,1767546632219,-300.0,0.00015639,2]
[400431073,1767546632229,-420.03639997,0.00015639,2]
[400431074,1767546632241,-35.69335293,0.00015639,2]
[400431075,1767546632250,-500.0,0.00015639,2]
[400431076,1767546632260,-500.0,0.00015639,2]
[400431077,1767546632270,-429.3659145,0.00015639,2]
[400431078,1767546632280,-43251.16386247,0.0001564,2]
[400431079,1767546638083,-431.69598331,0.00015547,2]
[400431080,1767546638094,-1323.45921772,0.00015547,2]
[400431081,1767546638106,-1405.49604618,0.00015547,2]
[400431082,1767546638115,-143.80543442,0.0001564,2]
[400431083,1767546638135,-36659.22978072,0.0001564,2]
[400431084,1767546638147,-871.59133588,0.0001564,2]
[400431085,1767546638158,-1157.83394336,0.0001564,2]
[400431086,1767546638169,-11206.29439902,0.0001564,2]
[400431087,1767546638180,-2317.10745193,0.0001564,2]
[400431088,1767546638191,-59227.963695,0.0001564,2]
[400431089,1767546638201,-404.68821727,0.0001564,2]
[400431090,1767546638212,-1017.64549955,0.0001564,2]
[400431091,1767546638223,-955.88436296,0.0001564,2]
[400431092,1767546638233,-878.59516704,0.0001564,2]
[400431093,1767546638245,-506.24704117,0.0001564,2]
[400431094,1767546638256,-8208.13722735,0.0001564,2]
[400431095,1767546638267,-499.21428765,0.0001564,2]
[400431096,1767546638279,-2730.54381795,0.0001564,2]
[400431097,1767546638290,-1583.41443103,0.0001564,2]
[400431098,1767546638305,-600.0,0.0001564,2]
[400431099,1767546638316,-40942.74504896,0.0001564,2]
[400431100,1767546638327,-2320.18029496,0.0001564,2]
[400431101,1767546638337,-53297.25259685,0.0001564,2]
[400431106,1767546640132,-313.4595975,0.0001564,2]
[400431108,1767546640143,-2759.8345469,0.0001564,2]
[400431114,1767546640187,-5000.00031248,0.0001564,2]
[400431125,1767546640294,-9037.39875583,0.0001564,2]
[400431126,1767546640355,-7797.00312763,0.0001564,2]
[400431127,1767546640403,-8117.35424924,0.0001564,2]
[400431128,1767546640511,-879.47,0.0001564,2]
[400431129,1767546640524,-493.65095226,0.0001564,2]
[400431130,1767546640538,-405.0,0.0001564,2]
[400431131,1767546640550,-10279.88414971,0.0001564,2]
[400431132,1767546640562,-19138.23941,0.0001564,2]
[400431134,1767546640574,-2447.56425142,0.0001564,2]
[400431149,1767546643879,-726.42009877,0.0001564,2]
[400431150,1767546644035,-663825.18265272,0.0001564,2]
[400431151,1767546644045,-320.38248401,0.00015647,2]
[400431152,1767546644055,-317.8102,0.00015649,2]
[400431153,1767546644067,-787.3816,0.0001565,2]
[400431154,1767546644077,-6700.0996,0.0001565,2]
[400431155,1767546644088,-204.93951531,0.000157,2]
[400431156,1767546644098,-414.0,0.000157,2]
[400431157,1767546644373,-170.21999252,0.00015719,4]
[400431158,1767546644387,-999.99,0.00015738,2]
[400431159,1767546644397,-1527.36,0.00015739,2]
[400431160,1767546644408,-9999.99,0.00015739,2]
[400431161,1767546644418,-13755.34831948,0.00015739,2]
[400431163,1767546646178,-733.53168052,0.00015739,2]
[400431164,1767546646189,-150.99,0.00015739,2]
[400431165,1767546646198,-9999.99,0.00015739,2]
[400431166,1767546646208,-9999.99,0.00015739,2]
[400431167,1767546646217,-9999.99,0.00015739,2]
[400431168,1767546646226,-299.99,0.00015739,2]
[400431169,1767546646236,-4999.99,0.00015739,2]
[400431170,1767546646245,-1000.0,0.00015739,2]
[400431171,1767546646255,-154.58280296,0.00015742,2]
[400431172,1767546646267,-960.83747194,0.00015742,2]
[400431173,1767546646277,-151.0,0.0001575,2]
[400431174,1767546646286,-151.0,0.0001575,2]
[400431175,1767546646296,-1000.0,0.0001575,2]
[400431176,1767546646307,-2380.60719203,0.00015808,2]
[400431177,1767546646316,-3160.6512472,0.00015808,2]
[400431178,1767546646326,-10000.0,0.0001585,2]
[400431179,1767546646335,-166.66,0.00015862,2]
[400431180,1767546646346,-500.0,0.0001589,2]
[400431181,1767546646356,-500.0,0.00015973,2]
[400431182,1767546646365,-510.914429,0.00015999,2]
[400431183,1767546646375,-49402.98745938,0.00016,2]
[400431184,1767546646384,-2380.60719203,0.0001607,2]
[400431185,1767546646395,-3160.6512472,0.0001607,2]
[400431186,1767546646404,-351.06,0.000161,2]
[400431187,1767546646413,-619.21,0.000161,2]
[400431188,1767546646423,-760.93,0.000161,2]
[400431189,1767546646433,-943.26,0.000161,2]
[400431190,1767546646442,-482.22,0.000161,2]
[400431191,1767546646453,-660.81,0.000161,2]
[400431192,1767546646465,-660.81,0.000161,2]
[400431193,1767546646475,-482.22,0.000161,2]
[400431194,1767546646484,-660.81,0.000161,2]
[400431195,1767546646494,-481.56,0.000161,2]
[400431196,1767546646504,-660.81,0.000161,2]
[400431197,1767546646514,-660.81,0.000161,2]
[400431198,1767546646524,-660.81,0.000161,2]
[400431199,1767546646537,-929.78,0.000161,2]
[400431201,1767546646546,-463.71,0.000161,2]
[400431203,1767546646555,-660.81,0.000161,2]
[400431204,1767546646566,-660.81,0.000161,2]
[400431205,1767546646576,-660.81,0.000161,2]
[400431206,1767546646584,-660.81,0.000161,2]
[400431207,1767546646595,-660.81,0.000161,2]
[400431208,1767546646605,-660.81,0.000161,2]
[400431209,1767546646615,-660.81,0.000161,2]
[400431210,1767546646626,-193.1,0.000161,2]
[400431211,1767546646636,-660.81,0.000161,2]
[400431212,1767546646646,-163.45327627,0.00016135,2]
[400431213,1767546646655,-166.66,0.00016176,2]
[400431214,1767546646664,-209.0,0.00016221,2]
[400431215,1767546646675,-165.98,0.00016277,2]
[400431216,1767546646685,-2380.60719203,0.00016331,2]
[400431217,1767546646695,-209.0,0.00016352,2]
[400431218,1767546646705,-178.8,0.00016356,2]
[400431219,1767546646714,-565.35,0.00016356,2]
[400431220,1767546646724,-387.9,0.00016356,2]
[400431221,1767546646733,-342.01,0.00016356,2]
[400431222,1767546646743,-153.52,0.00016356,2]
[400431223,1767546646752,-466.13,0.00016356,2]
[400431224,1767546646761,-178.88,0.00016356,2]
[400431225,1767546646771,-171.15,0.00016356,2]
[400431226,1767546646780,-466.13,0.00016356,2]
[400431227,1767546646789,-178.88,0.00016356,2]
[400431228,1767546646799,-171.15,0.00016356,2]
[400431229,1767546646808,-150.0,0.00016356,2]
[400431230,1767546646818,-466.13,0.00016356,2]
[400431231,1767546646827,-178.88,0.00016356,2]
[400431232,1767546646836,-171.15,0.00016356,2]
[400431233,1767546646846,-466.13,0.00016356,2]
[400431234,1767546646861,-171.15,0.00016356,2]
[400431235,1767546646875,-178.88,0.00016356,2]
[400431236,1767546646884,-150.0,0.00016356,2]
[400431237,1767546646893,-466.13,0.00016356,2]
[400431238,1767546646902,-178.88,0.00016356,2]
[400431239,1767546646912,-171.15,0.00016356,2]
[400431240,1767546646922,-150.0,0.00016356,2]
[400431241,1767546646932,-171.15,0.00016356,2]
[400431242,1767546646941,-171.15,0.00016356,2]
[400431243,1767546646950,-150.0,0.00016356,2]
[400431244,1767546646960,-171.15,0.00016356,2]
[400431245,1767546646970,-171.15,0.00016356,2]
[400431246,1767546646979,-171.15,0.00016356,2]
[400431247,1767546646989,-150.0,0.00016356,2]
[400431248,1767546646998,-340.86,0.00016356,2]
[400431249,1767546647007,-150.0,0.00016356,2]
[400431250,1767546647017,-150.0,0.00016356,2]
[400431251,1767546647026,-150.0,0.00016356,2]
[400431252,1767546647036,-4115.89,0.00016393,2]
[400431253,1767546647045,-1852.42,0.00016394,2]
[400431254,1767546647055,-1726.0,0.0001641,2]
[400431255,1767546647065,-500.0,0.00016438,2]
[400431256,1767546647074,-500.0,0.00016438,2]
[400431257,1767546647083,-500.0,0.00016438,2]
[400431258,1767546647093,-500.0,0.00016438,2]
[400431259,1767546647103,-500.0,0.00016438,2]
[400431260,1767546647112,-500.0,0.00016438,2]
[400431261,1767546647121,-500.0,0.00016438,2]
[400431262,1767546647131,-500.0,0.00016438,2]
[400431263,1767546647140,-500.0,0.00016438,2]
[400431264,1767546647149,-500.0,0.00016438,2]
[400431265,1767546647159,-500.0,0.00016438,2]
[400431266,1767546647168,-500.0,0.00016438,2]
[400431267,1767546647177,-500.0,0.00016438,2]
[400431268,1767546647186,-500.0,0.00016438,2]
[400431269,1767546647196,-500.0,0.00016438,2]
[400431270,1767546647205,-500.0,0.00016438,2]
[400431271,1767546647214,-500.0,0.00016438,2]
[400431272,1767546647224,-500.0,0.00016438,2]
[400431273,1767546647237,-500.0,0.00016438,2]
[400431274,1767546647247,-500.0,0.00016438,2]
[400431275,1767546647257,-500.0,0.00016438,2]
[400431276,1767546647269,-399.66916992,0.00016438,2]
[400431277,1767546647278,-500.0,0.00016438,2]
[400431278,1767546647288,-500.0,0.00016438,2]
[400431279,1767546647298,-5403.87,0.00016438,2]
[400431280,1767546647307,-200.0,0.0001644,2]
[400431281,1767546647319,-1600.0,0.00016468,2]
[400431282,1767546647328,-2452.84,0.00016471,2]
[400431283,1767546647337,-166.66,0.0001649,2]
[400431284,1767546647347,-171.29,0.00016501,2]
[400431285,1767546647357,-209.0,0.00016506,2]
[400431286,1767546647368,-166.67,0.0001659,2]
[400431287,1767546647378,-151.0,0.0001659,2]
[400431288,1767546647387,-151.0,0.0001659,2]
[400431289,1767546647398,-2380.60719203,0.00016593,2]
[400431290,1767546647412,-151.0,0.00016623,2]
[400431291,1767546647423,-151.0,0.00016623,2]
[400431292,1767546647432,-291.70829777,0.00016624,2]
[400431293,1767546647442,-226.36,0.00016673,2]
[400431294,1767546647451,-168.0,0.00016701,2]
[400431295,1767546647461,-163.45327627,0.00016724,2]
[400431296,1767546647470,-209.0,0.00016747,2]
[400431297,1767546647480,-510.0,0.00016765,2]
[400431298,1767546647490,-215.84,0.00016771,2]
[400431299,1767546647500,-1727.8891944,0.00016884,2]
[400431300,1767546647510,-250.0,0.00017,2]
[400431301,1767546647519,-420.0,0.00017094,2]
[400431302,1767546647529,-168.0,0.00017129,2]
[400431303,1767546647540,-2355.0,0.00017164,2]
[400431304,1767546647549,-150.0,0.00017178,2]
[400431305,1767546647560,-150.0,0.00017178,2]
[400431306,1767546647571,-150.0,0.00017178,2]
[400431307,1767546647581,-150.0,0.00017178,2]
[400431308,1767546647590,-150.0,0.00017178,2]
[400431309,1767546647601,-150.0,0.00017178,2]
[400431310,1767546647614,-1680.0,0.00017181,2]
[400431311,1767546647625,-165.98,0.00017182,2]
[400431312,1767546647635,-600.0,0.00017192,2]
[400431313,1767546647644,-250.0,0.00017192,2]
[400431314,1767546647654,-600.0,0.00017192,2]
[400431315,1767546647663,-2355.0,0.00017214,2]
[400431316,1767546647673,-2452.84,0.00017295,2]
[400431317,1767546647683,-163.45327627,0.00017312,2]
[400431318,1767546647693,-1361.249,0.00017348,2]
[400431319,1767546647703,-164.74,0.00017348,2]
[400431320,1767546647713,-151.0,0.00017348,2]
[400431321,1767546647723,-2355.0,0.0001736,2]
[400431322,1767546647732,-2355.0,0.00017414,2]
[400431323,1767546647743,-1000.0,0.00017418,2]
[400431324,1767546647752,-166.67,0.00017455,2]
[400431325,1767546647762,-1264.0,0.00017536,2]
[400431326,1767546647771,-433.0,0.00017536,2]
[400431327,1767546647782,-6547.0,0.00017553,2]
[400431328,1767546647794,-2162.572,0.00017553,2]
[400431329,1767546647804,-1215.798,0.00017554,2]
[400431330,1767546647813,-2355.0,0.00017559,2]
[400431331,1767546647823,-1446.99002142,0.0001764,2]
[400431332,1767546647833,-300.0,0.00017735,2]
[400431333,1767546647843,-150.0,0.0001779,2]
[400431334,1767546647855,-212.0,0.0001779,2]
[400431335,1767546647864,-170.432,0.0001779,2]
[400431336,1767546647873,-150.0,0.0001779,2]
[400431337,1767546647883,-150.613,0.0001779,2]
[400431338,1767546647892,-150.0,0.0001779,2]
[400431339,1767546647902,-150.356,0.0001779,2]
[400431340,1767546647912,-150.0,0.0001779,2]
[400431341,1767546647922,-163.705,0.0001779,2]
[400431342,1767546647932,-250.0,0.0001779,2]
[400431343,1767546647941,-250.0,0.0001779,2]
[400431344,1767546647951,-211.834,0.0001779,2]
[400431345,1767546647960,-167.0,0.0001779,2]
[400431346,1767546647970,-227.401,0.0001779,2]
[400431347,1767546647981,-3465.0,0.0001779,2]
[400431348,1767546647991,-1537.399,0.0001779,2]
[400431349,1767546648001,-613.0,0.0001779,2]
[400431350,1767546648011,-430.9774817,0.00017805,2]
[400431351,1767546648022,-1438.6273,0.0001782,2]
[400431352,1767546648032,-1438.62731,0.0001782,2]
[400431353,1767546648041,-1438.62731,0.0001782,2]
[400431354,1767546648050,-1438.62731,0.0001782,2]
[400431355,1767546648060,-1438.62731,0.0001782,2]
[400431356,1767546648069,-1438.62731,0.0001782,2]
[400431357,1767546648078,-300.0,0.0001785,2]
[400431358,1767546648088,-200.0,0.00017856,2]
[400431359,1767546648097,-248.3672316,0.000179,3]
[400431360,1767546648107,-13983.74973324,0.000179,2]
[400431361,1767546648116,-221.31268556,0.000179,2]
[400431362,1767546648125,-201.36386948,0.000179,2]
[400431363,1767546648136,-163.45327627,0.000179,2]
[400431364,1767546648146,-1504.85854174,0.0001797,2]
[400431365,1767546648155,-687.0,0.0001797,2]
[400431366,1767546648165,-14313.64496163,0.00017999,2]
[400431367,1767546648177,-151.748266,0.00017999,2]
[400431368,1767546648187,-300.0,0.00017999,2]
[400431369,1767546648196,-367022.80553288,0.00018,2]
[400431370,1767546648213,-4564.69843458,0.00018,2]
[400431376,1767546692499,6506.3503,0.0001554,2]
[400431377,1767546709438,3493.6597,0.0001553,2]
[400431378,1767546709467,10000.01,0.0001553,2]
[400431379,1767546709498,10000.01,0.0001553,2]
[400431380,1767546709524,10000.01,0.0001553,2]
[400431381,1767546709554,10000.01,0.0001553,2]
[400431382,1767546709581,10000.01,0.0001553,2]
[400431383,1767546709609,10000.01,0.0001553,2]
[400431384,1767546709638,10000.01,0.0001553,2]
[400431385,1767546709664,10000.01,0.0001553,2]
[400431386,1767546709689,10000.01,0.0001553,2]
[400431391,1767546755714,-300.0,0.00015529,2]
[400431392,1767546755742,-300.0,0.00015529,2]
[400431393,1767546755771,-300.0,0.00015529,2]
[400431394,1767546776191,192.91035932,0.00015529,2]
[400431395,1767546776483,197.93654592,0.00015529,2]
[400431396,1767546776794,183.68588386,0.00015529,2]
[400431397,1767546777074,500.0,0.00015529,2]
[400431398,1767546777376,207.12806287,0.00015529,2]
[400431399,1767546781427,300.0,0.00015529,2]
[400431400,1767546781728,500.0,0.00015529,2]
[400431401,1767546781758,200.5323999,0.00015529,2]
[400431402,1767546781790,500.0,0.00015529,2]
[400431403,1767546781820,500.0,0.00015529,2]
[400431404,1767546781851,500.0,0.00015529,2]
[400431405,1767546781880,266.69628261,0.00015529,2]
[400431406,1767546782141,500.0,0.00015529,2]
[400431407,1767546782172,456.14070919,0.00015529,2]
[400431408,1767546782214,313.1513291,0.00015529,2]
[400431409,1767546782246,500.0,0.00015529,2]
[400431410,1767546782287,500.0,0.00015529,2]
[400431411,1767546782325,500.0,0.00015529,2]
[400431412,1767546782372,500.0,0.00015529,2]
[400431413,1767546782419,500.0,0.00015529,2]
[400431414,1767546782455,381.82842723,0.00015529,2]
[400431415,1767546782478,118.17157277,0.00015529,2]
[400431416,1767546782517,500.0,0.00015529,2]
[400431417,1767546782562,500.0,0.00015529,2]
[400431418,1767546782611,500.0,0.00015529,2]
[400431419,1767546782654,500.0,0.00015529,2]
[400431420,1767546782704,500.0,0.00015529,2]
[400431421,1767546782751,500.0,0.00015529,2]
[400431422,1767546782790,500.0,0.00015529,2]
[400431423,1767546782834,500.0,0.00015529,2]
[400431424,1767546782871,500.0,0.00015529,2]
[400431425,1767546782921,500.0,0.00015529,2]
[400431426,1767546782966,500.0,0.00015529,2]
[400431427,1767546783003,500.0,0.00015529,2]
[400431428,1767546783047,500.0,0.00015529,2]
[400431429,1767546783083,500.0,0.00015529,2]
[400431430,1767546783120,500.0,0.00015529,2]
[400431431,1767546783164,500.0,0.00015529,2]
[400431432,1767546783210,500.0,0.00015529,2]
[400431433,1767546783264,500.0,0.00015529,2]
[400431434,1767546783330,500.0,0.00015529,2]
[400431435,1767546783371,381.83842723,0.00015529,2]
[400431440,1767546872260,170.80215418,0.0001544,2]
[400431446,1767546936016,200.0,0.0001544,2]
[400431451,1767546985533,297.18,0.00015427,2]
[400431457,1767547009905,2212.45587304,0.0001544,2]
[400431465,1767547028450,2709.6208,0.0001543,2]
[400431470,1767547107550,170.80215418,0.0001544,2]
[400431471,1767547116465,1190.30359606,0.0001544,2]
[400431480,1767547396188,1991.21028579,0.0001544,2]
[400431481,1767547397555,166.66,0.00014172,2]
[400431482,1767547397750,166.66,0.0001447,2]
[400431483,1767547397951,166.66,0.00014769,2]
[400431484,1767547398187,166.66,0.00015067,2]
[400431485,1767547398598,166.66,0.00015366,2]
[400431488,1767547564415,-3046.6374776,0.00015506,2]
[400431489,1767547564446,-754.4153448,0.00015507,2]
[400431490,1767547564741,-2397.9043552,0.00015507,2]
[400431491,1767547564772,-250.0,0.00015513,2]
[400431492,1767547564807,-300.0,0.00015516,2]
[400431493,1767547571937,200.0,0.00015034,2]
[400431495,1767547579442,-438.09983536,0.00015418,2]
[400431498,1767547611168,-166.66,0.00015418,2]
[400431499,1767547629338,-1071.27323649,0.0001544,2]
[400431500,1767547629377,-300.0,0.00015516,2]
[400431501,1767547632157,-438.10234896,0.00015517,2]
[400431502,1767547657110,-4329.40704537,0.00015517,2]
[400431503,1767547660842,-1545.83463142,0.00015517,2]
[400431504,1767547660866,-6908.34073716,0.00015517,2]
[400431506,1767547682085,177.31565734,0.00015418,2]
[400431512,1767547742778,9822.69434266,0.00015427,2]
[400431513,1767547742804,10000.01,0.00015427,2]
[400431514,1767547742830,10000.01,0.00015427,2]
[400431515,1767547742857,10000.01,0.00015427,2]
[400431516,1767547742883,10000.01,0.00015427,2]
[400431517,1767547742910,10000.01,0.00015427,2]
[400431518,1767547742937,10000.01,0.00015427,2]
[400431519,1767547742961,10000.01,0.00015427,2]
[400431520,1767547742987,10000.01,0.00015427,2]
[400431521,1767547743013,10000.01,0.00015427,2]
[400431522,1767547759990,-3452.365859,0.0001535,2]
[400431523,1767547765097,-1643.68186587,0.00015427,2]
[400431525,1767547771389,-3095.278282,0.00015427,2]
[400431526,1767547773958,-10000.01,0.00015427,2]
[400431527,1767547775773,-10000.01,0.00015427,2]
[400431528,1767547775981,-10000.01,0.00015427,2]
[400431529,1767547776390,-10000.01,0.00015427,2]
[400431530,1767547776416,-10000.01,0.00015427,2]
[400431531,1767547776512,-10000.01,0.00015427,2]
[400431532,1767547776677,-10000.01,0.00015427,2]
[400431533,1767547776870,-10000.01,0.00015427,2]
[400431534,1767547778704,150.0,0.00014863,2]
[400431535,1767547781075,-10000.01,0.00015427,2]
[400431539,1767547789626,-2967.71611104,0.00015418,2]
[400431540,1767547789666,-4064.57777792,0.00015427,2]
[400431541,1767547789820,-10000.01,0.00015427,2]
[400431542,1767547790125,-10000.01,0.00015427,2]
[400431543,1767547790308,-10000.01,0.00015427,2]
[400431544,1767547790503,-10000.01,0.00015427,2]
[400431545,1767547790668,-10000.01,0.00015427,2]
[400431546,1767547791321,-10000.01,0.00015427,2]
[400431547,1767547805239,-300.0,0.00015426,2]
[400431548,1767547805269,-300.0,0.00015426,2]
[400431549,1767547805300,-1200.0,0.00015426,2]
[400431550,1767547805331,-300.0,0.00015426,2]
[400431551,1767547805362,-278.0,0.00015427,2]
[400431552,1767547805506,-5244.01,0.00015427,2]
[400431553,1767547805536,-10000.01,0.00015427,2]
[400431590,1767547832694,-151.0,0.00015424,2]
[400431591,1767547832705,-208.20699192,0.00015426,2]
[400431592,1767547832715,-500.0,0.00015426,2]
[400431593,1767547832725,-230.4163294,0.00015426,2]
[400431594,1767547832734,-187.36404793,0.00015426,2]
[400431595,1767547832744,-252.72068585,0.00015426,2]
[400431596,1767547832753,-2968.61178855,0.00015427,2]
[400431597,1767547832842,-524.45373049,0.00015427,2]
[400431598,1767547832854,-947.96197807,0.00015427,2]
[400431599,1767547832865,-2560.8081349,0.00015427,2]
[400431600,1767547832890,-28409.86171874,0.00015427,2]
[400431601,1767547832901,-31758.39841874,0.00015427,2]
[400431602,1767547832911,-7631.69981,0.00015427,2]
[400431603,1767547832924,-3757.54575348,0.00015427,2]
[400431604,1767547832936,-3444.2674592,0.00015427,2]
[400431605,1767547832948,-834.46466102,0.00015427,2]
[400431606,1767547832959,-1483.77886887,0.00015427,2]
[400431607,1767547832971,-805.13740642,0.00015427,2]
[400431608,1767547832982,-390.29344023,0.00015427,2]
[400431609,1767547832993,-2424.42970357,0.00015427,2]
[400431610,1767547838268,-436.75223375,0.00015426,2]
[400431611,1767547838324,-63.24776625,0.00015426,2]
[400431612,1767547838334,-327.55799775,0.00015426,2]
[400431613,1767547838349,-172.44200225,0.00015426,2]
[400431614,1767547838359,-79.36338104,0.00015426,2]
[400431615,1767547838382,-420.63661896,0.00015426,2]
[400431616,1767547838392,-186.83687558,0.00015426,2]
[400431617,1767547838401,-500.0,0.00015426,2]
[400431618,1767547838411,-500.0,0.00015426,2]
[400431619,1767547838421,-500.0,0.00015426,2]
[400431620,1767547838431,-403.50147677,0.00015426,2]
[400431621,1767547838442,-500.0,0.00015426,2]
[400431622,1767547838451,-500.0,0.00015426,2]
[400431623,1767547838460,-89.9765175,0.00015426,2]
[400431624,1767547838472,-410.0234825,0.00015426,2]
[400431625,1767547838483,-500.0,0.00015426,2]
[400431626,1767547838493,-339.73379029,0.00015426,2]
[400431627,1767547838509,-160.26620971,0.00015426,2]
[400431628,1767547838519,-500.0,0.00015426,2]
[400431629,1767547838528,-500.0,0.00015426,2]
[400431630,1767547838538,-500.0,0.00015426,2]
[400431632,1767547838548,-500.0,0.00015426,2]